[Event "Early-Titled-Tuesday-Blitz-September-26-2023"]
[Site "Chess.com"]
[Date "2023.09.26"]
[Round "9"]
[White "amylazy"]
[Black "draksbg"]
[Result "1/2-1/2"]
[WhiteElo "2439"]
[BlackElo "2635"]
[TimeControl "180+1"]
[EndTime "9:47:32 PDT"]
[Termination "Game drawn - insufficient material"]

1. d4 {[%clk 0:03:00]} 1... Nf6 {[%clk 0:02:57.3]} 2. Nf3 {[%clk 0:03:00.4]}
2... g6 {[%clk 0:02:56]} 3. g3 {[%clk 0:03:00.9]} 3... Bg7 {[%clk 0:02:56.8]} 4.
Bg2 {[%clk 0:03:01.8]} 4... O-O {[%clk 0:02:57.7]} 5. O-O {[%clk 0:03:02.6]}
5... d6 {[%clk 0:02:58.6]} 6. a4 {[%clk 0:03:02.5]} 6... c6 {[%clk 0:02:59.5]}
7. a5 {[%clk 0:03:01.8]} 7... Nbd7 {[%clk 0:02:59.7]} 8. Nc3 {[%clk 0:03:01.2]}
8... e5 {[%clk 0:02:57.2]} 9. dxe5 {[%clk 0:02:58.5]} 9... dxe5 {[%clk
0:02:58.1]} 10. Qd6 {[%clk 0:02:57.2]} 10... Ne8 {[%clk 0:02:57]} 11. Qd3 {[%clk
0:02:54.3]} 11... Qe7 {[%clk 0:02:55.9]} 12. Rd1 {[%clk 0:02:43.3]} 12... Nc5
{[%clk 0:02:53.1]} 13. Qe3 {[%clk 0:02:41]} 13... Nc7 {[%clk 0:02:48.6]} 14. b4
{[%clk 0:02:40]} 14... Nd7 {[%clk 0:02:45.5]} 15. Ba3 {[%clk 0:02:39.2]} 15...
Nb5 {[%clk 0:02:16.4]} 16. Nxb5 {[%clk 0:02:39.5]} 16... cxb5 {[%clk 0:02:17.3]}
17. Bb2 {[%clk 0:02:35.6]} 17... Re8 {[%clk 0:02:16.3]} 18. Bc3 {[%clk
0:02:33.8]} 18... a6 {[%clk 0:02:11.3]} 19. Rd5 {[%clk 0:02:31.3]} 19... f6
{[%clk 0:02:04.9]} 20. Rad1 {[%clk 0:02:29.3]} 20... Nf8 {[%clk 0:02:04.5]} 21.
Qc5 {[%clk 0:02:26.4]} 21... Be6 {[%clk 0:02:02.8]} 22. Qxe7 {[%clk 0:02:24.2]}
22... Rxe7 {[%clk 0:02:03.6]} 23. Rd8 {[%clk 0:02:24.9]} 23... Re8 {[%clk
0:02:03.7]} 24. Rxa8 {[%clk 0:02:24.6]} 24... Rxa8 {[%clk 0:02:04.5]} 25. Ne1
{[%clk 0:02:22]} 25... Rb8 {[%clk 0:02:03.8]} 26. Rd6 {[%clk 0:02:20.9]} 26...
f5 {[%clk 0:01:55.9]} 27. e4 {[%clk 0:01:51.9]} 27... Rc8 {[%clk 0:01:46.9]} 28.
exf5 {[%clk 0:01:50.6]} 28... gxf5 {[%clk 0:01:45.2]} 29. Bd2 {[%clk 0:01:45.3]}
29... Rc7 {[%clk 0:01:43.1]} 30. Be3 {[%clk 0:01:38]} 30... e4 {[%clk
0:01:39.9]} 31. Bc5 {[%clk 0:01:36]} 31... Rd7 {[%clk 0:01:33.5]} 32. Bf1 {[%clk
0:01:15]} 32... Rxd6 {[%clk 0:01:30.6]} 33. Bxd6 {[%clk 0:01:14.8]} 33... Nd7
{[%clk 0:01:29.9]} 34. Ng2 {[%clk 0:01:11.2]} 34... Bc3 {[%clk 0:01:19.3]} 35.
Nf4 {[%clk 0:01:05.6]} 35... Kf7 {[%clk 0:01:18.1]} 36. Bh3 {[%clk 0:01:00.1]}
36... Ne5 {[%clk 0:01:11.9]} 37. Ne2 {[%clk 0:00:34.7]} 37... Nf3+ {[%clk
0:01:10.1]} 38. Kg2 {[%clk 0:00:34.4]} 38... Bd2 {[%clk 0:01:08.3]} 39. Nf4
{[%clk 0:00:28.8]} 39... Ne1+ {[%clk 0:01:04.3]} 40. Kf1 {[%clk 0:00:28.9]}
40... Nxc2 {[%clk 0:01:04.8]} 41. Ke2 {[%clk 0:00:27.8]} 41... Bxb4 {[%clk
0:01:04.2]} 42. Bxb4 {[%clk 0:00:27.9]} 42... Nxb4 {[%clk 0:01:04.1]} 43. g4
{[%clk 0:00:25]} 43... fxg4 {[%clk 0:01:03.6]} 44. Bg2 {[%clk 0:00:24.6]} 44...
Bf5 {[%clk 0:01:03.1]} 45. Ke3 {[%clk 0:00:20.5]} 45... Nc6 {[%clk 0:01:02.4]}
46. Ne2 {[%clk 0:00:15.3]} 46... Nxa5 {[%clk 0:00:59]} 47. Ng3 {[%clk
0:00:15.6]} 47... Kf6 {[%clk 0:00:58.2]} 48. Kf4 {[%clk 0:00:15]} 48... Bg6
{[%clk 0:00:57.7]} 49. Kxg4 {[%clk 0:00:15.3]} 49... b4 {[%clk 0:00:57.1]} 50.
h4 {[%clk 0:00:16.2]} 50... b3 {[%clk 0:00:56.7]} 51. h5 {[%clk 0:00:14.9]}
51... Bf7 {[%clk 0:00:56.7]} 52. Bxe4 {[%clk 0:00:14.2]} 52... b2 {[%clk
0:00:55]} 53. Bxh7 {[%clk 0:00:13.7]} 53... Ba2 {[%clk 0:00:54.8]} 54. Ne4+
{[%clk 0:00:12.7]} 54... Kg7 {[%clk 0:00:54.2]} 55. Ng5 {[%clk 0:00:10.6]} 55...
b1=Q {[%clk 0:00:52.5]} 56. Bxb1 {[%clk 0:00:10.2]} 56... Bxb1 {[%clk 0:00:53]}
57. Ne6+ {[%clk 0:00:08.5]} 57... Kf6 {[%clk 0:00:53.1]} 58. Nc5 {[%clk
0:00:07.3]} 58... b5 {[%clk 0:00:50.6]} 59. Nxa6 {[%clk 0:00:06.8]} 59... Nc6
{[%clk 0:00:50.6]} 60. f4 {[%clk 0:00:04.2]} 60... b4 {[%clk 0:00:50.5]} 61. Nc5
{[%clk 0:00:04.4]} 61... Bc2 {[%clk 0:00:47.5]} 62. Kf3 {[%clk 0:00:04]} 62...
b3 {[%clk 0:00:47.2]} 63. Na4 {[%clk 0:00:03.2]} 63... Bd1+ {[%clk 0:00:13.3]}
64. Ke3 {[%clk 0:00:03.4]} 64... Bxh5 {[%clk 0:00:13.9]} 65. Kd2 {[%clk
0:00:03.8]} 65... Bf7 {[%clk 0:00:13.4]} 66. Kc3 {[%clk 0:00:04.1]} 66... Kf5
{[%clk 0:00:10.7]} 67. Nc5 {[%clk 0:00:04.3]} 67... Na5 {[%clk 0:00:10.1]} 68.
Nd3 {[%clk 0:00:04.5]} 68... Ke4 {[%clk 0:00:09]} 69. Nc5+ {[%clk 0:00:03.8]}
69... Kxf4 {[%clk 0:00:08.3]} 70. Kb4 {[%clk 0:00:04.3]} 70... Nc6+ {[%clk
0:00:02.3]} 71. Kc3 {[%clk 0:00:03.2]} 71... Ke3 {[%clk 0:00:02.4]} 72. Nxb3
{[%clk 0:00:03.2]} 72... Bxb3 {[%clk 0:00:03.2]} 73. Kxb3 {[%clk 0:00:04.1]}
1/2-1/2

[Event "Early-Titled-Tuesday-Blitz-September-26-2023"]
[Site "Chess.com"]
[Date "2023.09.26"]
[Round "9"]
[White "AradNazari"]
[Black "BlitzWizard04"]
[Result "0-1"]
[WhiteElo "2785"]
[BlackElo "2653"]
[TimeControl "180+1"]
[EndTime "9:47:59 PDT"]
[Termination "BlitzWizard04 won by resignation"]

1. e4 {[%clk 0:02:58.8]} 1... c5 {[%clk 0:02:44.5]} 2. Nf3 {[%clk 0:02:32.5]}
2... e6 {[%clk 0:02:44.6]} 3. d4 {[%clk 0:02:32.2]} 3... cxd4 {[%clk 0:02:45.5]}
4. Nxd4 {[%clk 0:02:33.1]} 4... Nc6 {[%clk 0:02:46.2]} 5. Nc3 {[%clk 0:02:31.6]}
5... Qc7 {[%clk 0:02:46.7]} 6. Be3 {[%clk 0:02:31.5]} 6... a6 {[%clk 0:02:47.2]}
7. Qf3 {[%clk 0:02:31.9]} 7... Ne5 {[%clk 0:02:47.9]} 8. Qg3 {[%clk 0:02:32]}
8... h5 {[%clk 0:02:48.6]} 9. Nf5 {[%clk 0:02:22.8]} 9... exf5 {[%clk
0:02:42.6]} 10. Nd5 {[%clk 0:02:20]} 10... Qb8 {[%clk 0:01:50.6]} 11. Bb6 {[%clk
0:02:02.7]} 11... h4 {[%clk 0:01:49.7]} 12. Qc3 {[%clk 0:01:57.5]} 12... Nc6
{[%clk 0:01:40.4]} 13. Bc7 {[%clk 0:01:38.2]} 13... Qa7 {[%clk 0:01:39.3]} 14.
O-O-O {[%clk 0:01:37.5]} 14... Nge7 {[%clk 0:01:32.3]} 15. Re1 {[%clk
0:01:26.9]} 15... d6 {[%clk 0:01:24.9]} 16. Bb6 {[%clk 0:01:23]} 16... Qb8
{[%clk 0:01:22.1]} 17. Nc7+ {[%clk 0:01:23.3]} 17... Kd7 {[%clk 0:01:19.3]} 18.
exf5 {[%clk 0:01:17.9]} 18... Qxc7 {[%clk 0:01:09.2]} 19. Bxc7 {[%clk 0:01:16]}
19... Kxc7 {[%clk 0:01:10.1]} 20. f6 {[%clk 0:01:14.5]} 20... gxf6 {[%clk
0:01:06.8]} 21. Qxf6 {[%clk 0:01:14.9]} 21... Bh6+ {[%clk 0:01:02.7]} 22. Kb1
{[%clk 0:01:13.8]} 22... Be6 {[%clk 0:01:03.6]} 23. Bd3 {[%clk 0:01:10.9]} 23...
Nd5 {[%clk 0:01:03.6]} 24. Qf3 {[%clk 0:01:02]} 24... Ne5 {[%clk 0:01:03.2]} 25.
Qd1 {[%clk 0:00:56.5]} 25... Rhg8 {[%clk 0:01:00.8]} 26. Be4 {[%clk 0:00:52.7]}
26... Nf6 {[%clk 0:00:56.7]} 27. Rhg1 {[%clk 0:00:34.2]} 27... h3 {[%clk
0:00:40.9]} 28. gxh3 {[%clk 0:00:28.6]} 28... Rxg1 {[%clk 0:00:37.9]} 29. Rxg1
{[%clk 0:00:29.5]} 29... Nxe4 {[%clk 0:00:37.7]} 30. Ka1 {[%clk 0:00:22.6]}
30... Nxf2 {[%clk 0:00:32.3]} 31. Qd4 {[%clk 0:00:21.4]} 31... Nxh3 {[%clk
0:00:28.4]} 32. Rg3 {[%clk 0:00:21.7]} 32... Nf4 {[%clk 0:00:24.6]} 33. Rc3+
{[%clk 0:00:21.2]} 33... Nc6 {[%clk 0:00:23.3]} 34. Qf6 {[%clk 0:00:21.5]} 34...
Rg8 {[%clk 0:00:14.5]} 35. Rg3 {[%clk 0:00:15.2]} 35... Ng6 {[%clk 0:00:10.4]}
36. h4 {[%clk 0:00:10.6]} 36... Bf4 {[%clk 0:00:10.4]} 37. Rg1 {[%clk
0:00:10.9]} 37... Be5 {[%clk 0:00:10.3]} 38. Qf3 {[%clk 0:00:08.9]} 38... Rh8
{[%clk 0:00:09.3]} 39. h5 {[%clk 0:00:08.9]} 39... Nf4 {[%clk 0:00:09.7]} 40.
Rg5 {[%clk 0:00:07.4]} 40... Nd4 {[%clk 0:00:05.6]} 41. Qc3+ {[%clk 0:00:06.7]}
41... Nc6 {[%clk 0:00:06.2]} 42. Qf3 {[%clk 0:00:06.9]} 42... Kd7 {[%clk
0:00:06.8]} 43. c3 {[%clk 0:00:06.3]} 43... Ke7 {[%clk 0:00:07.2]} 44. a4 {[%clk
0:00:05.6]} 44... Bd5 {[%clk 0:00:06.3]} 45. Qe3 {[%clk 0:00:05.6]} 45... Be6
{[%clk 0:00:05.9]} 46. Qf3 {[%clk 0:00:05.9]} 46... f6 {[%clk 0:00:06.3]} 47.
Rg7+ {[%clk 0:00:06]} 47... Bf7 {[%clk 0:00:07.1]} 48. Qf2 {[%clk 0:00:05.1]}
48... Rxh5 {[%clk 0:00:07.1]} 49. Kb1 {[%clk 0:00:04.5]} 49... Rh1+ {[%clk
0:00:07]} 50. Rg1 {[%clk 0:00:04.5]} 50... Rxg1+ {[%clk 0:00:06.9]} 51. Qxg1
{[%clk 0:00:05.4]} 51... Bg6+ {[%clk 0:00:07.3]} 52. Ka2 {[%clk 0:00:03.6]}
52... Ke6 {[%clk 0:00:07.8]} 53. Qb6 {[%clk 0:00:03.5]} 53... Bf7 {[%clk
0:00:07.1]} 54. Qxb7 {[%clk 0:00:03.5]} 54... Nd8 {[%clk 0:00:06.5]} 55. Qxa6
{[%clk 0:00:03.6]} 55... Kf5+ {[%clk 0:00:06.2]} 56. b3 {[%clk 0:00:04.1]} 56...
Nde6 {[%clk 0:00:06.2]} 57. Qc8 {[%clk 0:00:04.3]} 57... Ke4 {[%clk 0:00:05.4]}
58. a5 {[%clk 0:00:04.9]} 58... Nc5 {[%clk 0:00:05.2]} 59. a6 {[%clk 0:00:04.8]}
59... Bxb3+ {[%clk 0:00:05.7]} 60. Kb2 {[%clk 0:00:05.2]} 60... Bd5 {[%clk
0:00:06]} 61. a7 {[%clk 0:00:05.4]} 61... Nfd3+ {[%clk 0:00:06.4]} 62. Kc2
{[%clk 0:00:05.1]} 62... f5 {[%clk 0:00:06.8]} 63. a8=Q {[%clk 0:00:04.3]} 63...
Bxa8 {[%clk 0:00:07.5]} 64. Qxa8+ {[%clk 0:00:05.2]} 64... Ke3 {[%clk
0:00:08.2]} 65. Qg8 {[%clk 0:00:04]} 65... f4 {[%clk 0:00:07.8]} 66. Qg1+ {[%clk
0:00:04.3]} 66... Ke4 {[%clk 0:00:06.8]} 67. Kd2 {[%clk 0:00:03.9]} 67... f3
{[%clk 0:00:06.3]} 68. Qg4+ {[%clk 0:00:03.6]} 68... Bf4+ {[%clk 0:00:06.1]} 69.
Kc2 {[%clk 0:00:03.5]} 69... Ne1+ {[%clk 0:00:03.8]} 70. Kd1 {[%clk 0:00:03.6]}
70... Ned3 {[%clk 0:00:04.7]} 71. Kc2 {[%clk 0:00:04]} 71... Ne5 {[%clk
0:00:05.6]} 72. Qg1 {[%clk 0:00:03.2]} 72... Be3 {[%clk 0:00:05.8]} 73. Qh1
{[%clk 0:00:02.8]} 73... Kf4 {[%clk 0:00:05.2]} 74. Qh7 {[%clk 0:00:03.4]} 74...
f2 {[%clk 0:00:04.8]} 75. Qh3 {[%clk 0:00:04]} 75... Nf3 {[%clk 0:00:04.5]} 76.
Kd1 {[%clk 0:00:03.8]} 76... Ne4 {[%clk 0:00:05.1]} 77. Qh6+ {[%clk 0:00:01.9]}
77... Nfg5 {[%clk 0:00:04.5]} 78. Ke2 {[%clk 0:00:01.6]} 78... Ng3+ {[%clk
0:00:04.2]} 79. Kd3 {[%clk 0:00:01.8]} 79... f1=Q+ {[%clk 0:00:04.5]} 80. Kc2
{[%clk 0:00:02.7]} 80... Qe2+ {[%clk 0:00:05.1]} 81. Kb3 {[%clk 0:00:03.6]}
81... Qb5+ {[%clk 0:00:05.6]} 82. Kc2 {[%clk 0:00:04]} 82... Qf5+ {[%clk
0:00:06.5]} 83. Kb3 {[%clk 0:00:04.9]} 83... Ne4 {[%clk 0:00:07.1]} 84. Qh2+
{[%clk 0:00:04.7]} 84... Ng3 {[%clk 0:00:06.1]} 85. Qh4+ {[%clk 0:00:05.4]}
85... Kf3 {[%clk 0:00:06.2]} 86. Qh8 {[%clk 0:00:04.1]} 86... Qb1+ {[%clk
0:00:06.6]} 87. Kc4 {[%clk 0:00:04.4]} 87... Qe4+ {[%clk 0:00:07.3]} 88. Kb3
{[%clk 0:00:04.9]} 88... Qe5 {[%clk 0:00:08.2]} 89. Qf8+ {[%clk 0:00:04.6]}
89... Ke2 {[%clk 0:00:08.6]} 90. Qc8 {[%clk 0:00:04.4]} 90... N5e4 {[%clk
0:00:09.1]} 91. Qa6+ {[%clk 0:00:04.6]} 91... Kd2 {[%clk 0:00:09.6]} 92. Qa2+
{[%clk 0:00:03.4]} 92... Ke1 {[%clk 0:00:10.2]} 93. Qg2 {[%clk 0:00:02.5]} 93...
Qxc3+ {[%clk 0:00:09.9]} 94. Ka4 {[%clk 0:00:03.1]} 94... Qc4+ {[%clk 0:00:10]}
95. Ka3 {[%clk 0:00:03]} 95... Bc1+ {[%clk 0:00:10.5]} 0-1

[Event "Early-Titled-Tuesday-Blitz-September-26-2023"]
[Site "Chess.com"]
[Date "2023.09.26"]
[Round "10"]
[White "Cheer_Down"]
[Black "Javylavilla"]
[Result "1-0"]
[WhiteElo "2472"]
[BlackElo "2334"]
[TimeControl "180+1"]
[EndTime "9:51:59 PDT"]
[Termination "Cheer_Down won by resignation"]

1. e4 {[%clk 0:03:00.9]} 1... e6 {[%clk 0:02:59.1]} 2. d4 {[%clk 0:03:00.7]}
2... d5 {[%clk 0:02:59.4]} 3. Nc3 {[%clk 0:03:00.9]} 3... Bb4 {[%clk 0:02:58.2]}
4. e5 {[%clk 0:03:00.4]} 4... c5 {[%clk 0:02:57.2]} 5. a3 {[%clk 0:02:59.9]}
5... Bxc3+ {[%clk 0:02:57.2]} 6. bxc3 {[%clk 0:03:00.8]} 6... Qc7 {[%clk
0:02:56.9]} 7. h4 {[%clk 0:02:58.8]} 7... Ne7 {[%clk 0:02:56.4]} 8. h5 {[%clk
0:02:57.2]} 8... cxd4 {[%clk 0:02:53]} 9. cxd4 {[%clk 0:02:57.2]} 9... Qc3+
{[%clk 0:02:52.4]} 10. Bd2 {[%clk 0:02:57.3]} 10... Qxd4 {[%clk 0:02:52.3]} 11.
Nf3 {[%clk 0:02:57]} 11... Qe4+ {[%clk 0:02:48.8]} 12. Be2 {[%clk 0:02:56.4]}
12... Nbc6 {[%clk 0:02:48.3]} 13. Rh4 {[%clk 0:02:48.9]} 13... Qxh4 {[%clk
0:02:10.8]} 14. Nxh4 {[%clk 0:02:48.6]} 14... Nxe5 {[%clk 0:02:11.7]} 15. h6
{[%clk 0:02:46.1]} 15... N5g6 {[%clk 0:02:02.6]} 16. hxg7 {[%clk 0:02:34]} 16...
Rg8 {[%clk 0:02:02.4]} 17. Nxg6 {[%clk 0:02:33.6]} 17... hxg6 {[%clk 0:02:01.3]}
18. Bc3 {[%clk 0:02:31.8]} 18... Bd7 {[%clk 0:01:58.1]} 19. Bf6 {[%clk
0:02:23.4]} 19... Nf5 {[%clk 0:01:54.2]} 20. g4 {[%clk 0:02:20.3]} 20... Nxg7
{[%clk 0:01:53.6]} 21. Qd4 {[%clk 0:02:15.4]} 21... e5 {[%clk 0:01:50.7]} 22.
Qxd5 {[%clk 0:02:06.2]} 22... Bxg4 {[%clk 0:01:46.3]} 23. Bxg7 {[%clk 0:02:05]}
1-0

[Event "Early-Titled-Tuesday-Blitz-September-26-2023"]
[Site "Chess.com"]
[Date "2023.09.26"]
[Round "10"]
[White "spotbet"]
[Black "SharapovEvgeny"]
[Result "1/2-1/2"]
[WhiteElo "2402"]
[BlackElo "2581"]
[TimeControl "180+1"]
[EndTime "9:52:14 PDT"]
[Termination "Game drawn by agreement"]

1. d4 {[%clk 0:03:00.9]} 1... Nf6 {[%clk 0:02:59.3]} 2. Bf4 {[%clk 0:03:00.9]}
2... d5 {[%clk 0:02:58.1]} 3. Nc3 {[%clk 0:02:56.1]} 3... c6 {[%clk 0:02:57.8]}
4. Nf3 {[%clk 0:02:55.4]} 4... Qb6 {[%clk 0:02:57.8]} 5. Qc1 {[%clk 0:02:54.8]}
5... Bf5 {[%clk 0:02:56.4]} 6. e3 {[%clk 0:02:54.8]} 6... g6 {[%clk 0:02:55.6]}
7. h3 {[%clk 0:02:55]} 7... Ne4 {[%clk 0:02:55.2]} 8. Nxe4 {[%clk 0:02:54]} 8...
Bxe4 {[%clk 0:02:55.3]} 9. Be2 {[%clk 0:02:54.4]} 9... Bxf3 {[%clk 0:02:55.1]}
10. Bxf3 {[%clk 0:02:54.6]} 10... Bg7 {[%clk 0:02:55.8]} 11. O-O {[%clk
0:02:55]} 11... O-O {[%clk 0:02:56.1]} 12. c4 {[%clk 0:02:55.5]} 12... Nd7
{[%clk 0:02:56]} 13. cxd5 {[%clk 0:02:55.8]} 13... cxd5 {[%clk 0:02:55.9]} 14.
Bxd5 {[%clk 0:02:56.2]} 14... e5 {[%clk 0:02:53.8]} 15. dxe5 {[%clk 0:02:54.5]}
15... Nxe5 {[%clk 0:02:54]} 16. Bxe5 {[%clk 0:02:49.1]} 16... Bxe5 {[%clk
0:02:53.8]} 17. Rb1 {[%clk 0:02:49]} 17... Rfd8 {[%clk 0:02:52.8]} 18. e4 {[%clk
0:02:49.1]} 18... Rac8 {[%clk 0:02:52.3]} 19. Qg5 {[%clk 0:02:47]} 19... Qf6
{[%clk 0:02:49.4]} 20. Qxf6 {[%clk 0:02:45.6]} 20... Bxf6 {[%clk 0:02:49.6]} 21.
Bxb7 {[%clk 0:02:42.7]} 21... Rc2 {[%clk 0:02:49.5]} 22. Bd5 {[%clk 0:02:42.1]}
22... Rxb2 {[%clk 0:02:46.6]} 23. Rxb2 {[%clk 0:02:41.9]} 23... Bxb2 {[%clk
0:02:46.6]} 24. Rb1 {[%clk 0:02:42.4]} 24... Rb8 {[%clk 0:02:46.4]} 25. Kf1
{[%clk 0:02:41.5]} 25... Kf8 {[%clk 0:02:43.8]} 26. Ke2 {[%clk 0:02:38.5]} 26...
Ke7 {[%clk 0:02:43.7]} 27. Kd3 {[%clk 0:02:38]} 27... Be5 {[%clk 0:02:42.3]} 28.
Bb3 {[%clk 0:02:32.3]} 28... Rc8 {[%clk 0:02:40.6]} 29. g3 {[%clk 0:02:28.7]}
29... g5 {[%clk 0:02:40.4]} 30. Rf1 {[%clk 0:02:27.4]} 30... Rc3+ {[%clk
0:02:39.1]} 31. Kd2 {[%clk 0:02:27.4]} 31... Rf3 {[%clk 0:02:35.4]} 32. Ke2
{[%clk 0:02:26.2]} 32... Rc3 {[%clk 0:02:35.4]} 33. f4 {[%clk 0:02:25.9]} 33...
gxf4 {[%clk 0:02:33.2]} 34. gxf4 {[%clk 0:02:25.9]} 34... Bd4 {[%clk 0:02:32.5]}
35. Rd1 {[%clk 0:02:22.8]} 35... Re3+ {[%clk 0:02:32]} 36. Kf1 {[%clk 0:02:17]}
36... Rxe4 {[%clk 0:02:31]} 37. f5 {[%clk 0:02:15.3]} 37... Rf4+ {[%clk
0:02:30.3]} 38. Kg2 {[%clk 0:02:15.3]} 38... Bb6 {[%clk 0:02:25.4]} 39. Rf1
{[%clk 0:02:12.4]} 39... Rxf1 {[%clk 0:02:21.5]} 40. Kxf1 {[%clk 0:02:12.4]}
40... Kf6 {[%clk 0:02:22.2]} 41. Bc2 {[%clk 0:02:12.6]} 41... Ke5 {[%clk
0:02:22.5]} 42. Kg2 {[%clk 0:02:11.3]} 42... h6 {[%clk 0:02:22.5]} 43. Kf3
{[%clk 0:02:10.7]} 43... f6 {[%clk 0:02:23]} 44. Kg4 {[%clk 0:02:09.6]} 44...
Bc5 {[%clk 0:02:23.1]} 45. Kh5 {[%clk 0:02:09.7]} 45... Be3 {[%clk 0:02:23.1]}
46. Kg6 {[%clk 0:02:10.2]} 46... Bf4 {[%clk 0:02:22.6]} 47. h4 {[%clk
0:02:07.8]} 1/2-1/2

[Event "Early-Titled-Tuesday-Blitz-September-26-2023"]
[Site "Chess.com"]
[Date "2023.09.26"]
[Round "10"]
[White "AttilaTurzo"]
[Black "LeoWin2012"]
[Result "1-0"]
[WhiteElo "2470"]
[BlackElo "2333"]
[TimeControl "180+1"]
[EndTime "9:52:14 PDT"]
[Termination "AttilaTurzo won by checkmate"]

1. d4 {[%clk 0:03:00.9]} 1... d5 {[%clk 0:02:56.9]} 2. Bf4 {[%clk 0:03:00.8]}
2... Nf6 {[%clk 0:02:55.6]} 3. e3 {[%clk 0:03:00.4]} 3... e6 {[%clk 0:02:55.7]}
4. Nf3 {[%clk 0:02:57.3]} 4... Bd6 {[%clk 0:02:55.7]} 5. Nbd2 {[%clk 0:02:56.5]}
5... Bxf4 {[%clk 0:02:52.5]} 6. exf4 {[%clk 0:02:56.4]} 6... Qd6 {[%clk
0:02:52.8]} 7. g3 {[%clk 0:02:49.2]} 7... c5 {[%clk 0:02:51.3]} 8. c3 {[%clk
0:02:46.7]} 8... Nc6 {[%clk 0:02:50.2]} 9. dxc5 {[%clk 0:02:36.3]} 9... Qxc5
{[%clk 0:02:49.8]} 10. Bd3 {[%clk 0:02:34.8]} 10... O-O {[%clk 0:02:25.2]} 11.
O-O {[%clk 0:02:32.8]} 11... Re8 {[%clk 0:02:20.1]} 12. Qe2 {[%clk 0:02:29]}
12... Qd6 {[%clk 0:02:14.3]} 13. Rfe1 {[%clk 0:02:28.2]} 13... Nd7 {[%clk
0:02:10]} 14. Rad1 {[%clk 0:02:24]} 14... e5 {[%clk 0:02:08.6]} 15. Nc4 {[%clk
0:02:08.9]} 15... Qc7 {[%clk 0:01:53.3]} 16. Ncxe5 {[%clk 0:02:06.1]} 16... f6
{[%clk 0:01:51.2]} 17. Bxh7+ {[%clk 0:01:59.2]} 17... Kxh7 {[%clk 0:01:45.4]}
18. Ng5+ {[%clk 0:01:58.8]} 18... Kg8 {[%clk 0:01:37.8]} 19. Qh5 {[%clk
0:01:57.8]} 19... Ndxe5 {[%clk 0:01:33.1]} 20. Qxe8# {[%clk 0:01:56.1]} 1-0

[Event "Early-Titled-Tuesday-Blitz-September-26-2023"]
[Site "Chess.com"]
[Date "2023.09.26"]
[Round "10"]
[White "djokovic74"]
[Black "noblerone"]
[Result "1-0"]
[WhiteElo "2675"]
[BlackElo "2493"]
[TimeControl "180+1"]
[EndTime "9:52:34 PDT"]
[Termination "djokovic74 won by resignation"]

1. e4 {[%clk 0:03:00.9]} 1... d5 {[%clk 0:02:57.6]} 2. exd5 {[%clk 0:03:01.1]}
2... Qxd5 {[%clk 0:02:58.5]} 3. Nc3 {[%clk 0:03:01.7]} 3... Qd8 {[%clk
0:02:58.2]} 4. Nf3 {[%clk 0:03:02.5]} 4... Nf6 {[%clk 0:02:56.9]} 5. d4 {[%clk
0:03:03]} 5... Bg4 {[%clk 0:02:56.2]} 6. Be2 {[%clk 0:03:03.7]} 6... e6 {[%clk
0:02:55.6]} 7. O-O {[%clk 0:03:03.9]} 7... c6 {[%clk 0:02:53.3]} 8. h3 {[%clk
0:03:02.6]} 8... Bxf3 {[%clk 0:02:53.1]} 9. Bxf3 {[%clk 0:03:02.3]} 9... Bd6
{[%clk 0:02:53.2]} 10. Ne4 {[%clk 0:03:02]} 10... Nxe4 {[%clk 0:02:53]} 11. Bxe4
{[%clk 0:03:02]} 11... Nd7 {[%clk 0:02:53.7]} 12. c3 {[%clk 0:03:02.2]} 12...
Nf6 {[%clk 0:02:53.7]} 13. Bc2 {[%clk 0:03:02.8]} 13... Bc7 {[%clk 0:02:54.4]}
14. Qf3 {[%clk 0:03:02.8]} 14... Qd6 {[%clk 0:02:50.1]} 15. g3 {[%clk
0:03:03.2]} 15... Qd5 {[%clk 0:02:48.2]} 16. Qxd5 {[%clk 0:03:02.4]} 16... cxd5
{[%clk 0:02:45.7]} 17. Bg5 {[%clk 0:03:01.3]} 17... Bd8 {[%clk 0:02:25.7]} 18.
Bxf6 {[%clk 0:03:00.3]} 18... Bxf6 {[%clk 0:02:25.6]} 19. Kg2 {[%clk 0:03:00.7]}
19... Ke7 {[%clk 0:02:23.2]} 20. Bd3 {[%clk 0:02:59.9]} 20... Kd6 {[%clk
0:02:23.3]} 21. Rfe1 {[%clk 0:03:00.4]} 21... Rhc8 {[%clk 0:02:18.7]} 22. f4
{[%clk 0:03:00.4]} 22... a6 {[%clk 0:02:15.7]} 23. f5 {[%clk 0:03:00.9]} 23...
h6 {[%clk 0:02:13.6]} 24. fxe6 {[%clk 0:03:00.7]} 24... fxe6 {[%clk 0:02:14.5]}
25. Re2 {[%clk 0:03:00.4]} 25... Re8 {[%clk 0:02:01.2]} 26. Rae1 {[%clk
0:02:59.1]} 26... Re7 {[%clk 0:01:59.8]} 27. Bc2 {[%clk 0:02:56.9]} 27... Rc8
{[%clk 0:01:56.7]} 28. Bb3 {[%clk 0:02:56.4]} 28... b5 {[%clk 0:01:54.4]} 29.
Bd1 {[%clk 0:02:56.3]} 29... e5 {[%clk 0:01:20.3]} 30. dxe5+ {[%clk 0:02:55.4]}
30... Rxe5 {[%clk 0:01:21.2]} 31. Rxe5 {[%clk 0:02:55.2]} 31... Bxe5 {[%clk
0:01:22.1]} 32. Bf3 {[%clk 0:02:55.9]} 32... d4 {[%clk 0:01:12.4]} 33. Rd1
{[%clk 0:02:55]} 33... Kc5 {[%clk 0:01:10.7]} 34. cxd4+ {[%clk 0:02:55.1]} 1-0

[Event "Early-Titled-Tuesday-Blitz-September-26-2023"]
[Site "Chess.com"]
[Date "2023.09.26"]
[Round "10"]
[White "GeorgiosSouleidis"]
[Black "amylazy"]
[Result "1-0"]
[WhiteElo "2546"]
[BlackElo "2433"]
[TimeControl "180+1"]
[EndTime "9:52:44 PDT"]
[Termination "GeorgiosSouleidis won by resignation"]

1. e4 {[%clk 0:03:00.9]} 1... c5 {[%clk 0:02:58.8]} 2. Be2 {[%clk 0:03:00.1]}
2... Nc6 {[%clk 0:02:57]} 3. d3 {[%clk 0:02:59.8]} 3... d6 {[%clk 0:02:57.1]} 4.
f4 {[%clk 0:03:00.3]} 4... g6 {[%clk 0:02:57.6]} 5. Nf3 {[%clk 0:03:00.9]} 5...
Bg7 {[%clk 0:02:58]} 6. O-O {[%clk 0:03:01.8]} 6... Nf6 {[%clk 0:02:57.9]} 7. c3
{[%clk 0:03:02.3]} 7... O-O {[%clk 0:02:58.4]} 8. Kh1 {[%clk 0:03:02.3]} 8... b5
{[%clk 0:02:58.2]} 9. a3 {[%clk 0:03:02.6]} 9... Bb7 {[%clk 0:02:58.6]} 10. Be3
{[%clk 0:03:01.9]} 10... a5 {[%clk 0:02:58.7]} 11. Nbd2 {[%clk 0:03:02.2]} 11...
b4 {[%clk 0:02:58.3]} 12. d4 {[%clk 0:03:01.5]} 12... bxc3 {[%clk 0:02:55.2]}
13. bxc3 {[%clk 0:03:02.4]} 13... cxd4 {[%clk 0:02:54.8]} 14. cxd4 {[%clk
0:03:03.3]} 14... Ba6 {[%clk 0:02:54.4]} 15. Rc1 {[%clk 0:02:42.8]} 15... Ng4
{[%clk 0:02:52.8]} 16. Bg1 {[%clk 0:02:41.9]} 16... h5 {[%clk 0:02:49.4]} 17.
Rxc6 {[%clk 0:02:30.6]} 17... Bb7 {[%clk 0:02:45]} 18. Rc2 {[%clk 0:02:23]}
18... Bh6 {[%clk 0:02:43]} 19. Ng5 {[%clk 0:02:06.6]} 19... e5 {[%clk
0:02:42.7]} 20. Bxg4 {[%clk 0:01:44.9]} 20... hxg4 {[%clk 0:02:42.8]} 21. Qxg4
{[%clk 0:01:26.2]} 21... exf4 {[%clk 0:02:42.7]} 22. Ndf3 {[%clk 0:01:15.1]}
22... Qf6 {[%clk 0:02:33.2]} 23. d5 {[%clk 0:01:13.1]} 23... Qe7 {[%clk
0:02:23]} 24. Qh4 {[%clk 0:01:06.1]} 24... Kg7 {[%clk 0:02:14.6]} 25. Bd4+
{[%clk 0:01:05]} 25... f6 {[%clk 0:02:14.5]} 26. Ne6+ {[%clk 0:01:05]} 1-0